[Event "Titled Tuesday Blitz January 10 Early 2023"]
[White "Blokhin, Sofia"]
[Black "Trigo Urquijo, Sergio"]
[WhiteFideId "4508190"]
[BlackFideId "2262436"]
[WhiteElo "2062"]
[BlackElo "2408"]
[Result "0-1"]
[Round "07"]
[TimeControl "180+2"]
[Date "2023.01.10"]
[WhiteClock "0:00:01"]
[BlackClock "0:00:46"]

1. d4 {[%clk 0:03:00]}  Nf6 {[%clk 0:02:59]} 2. c4 {[%clk 0:03:00]}  g6 {[%clk 0:02:59]} 3. Nc3 {[%clk 0:03:00]}  d5 {[%clk 0:02:59]} 4. e3 {[%clk 0:02:58]}  Bg7 {[%clk 0:02:58]} 5. c5 {[%clk 0:02:58]}  b6 {[%clk 0:02:56]} 6. cxb6 {[%clk 0:02:56]}  axb6 {[%clk 0:02:55]} 7. Nf3 {[%clk 0:02:54]}  O-O {[%clk 0:02:55]} 8. Bd3 {[%clk 0:02:53]}  c5 {[%clk 0:02:55]} 9. O-O {[%clk 0:02:44]}  Nc6 {[%clk 0:02:54]} 10. dxc5 {[%clk 0:02:43]}  bxc5 {[%clk 0:02:53]} 11. Bc2 {[%clk 0:02:34]}  e5 {[%clk 0:02:50]} 12. Ba4 {[%clk 0:02:24]}  Bb7 {[%clk 0:02:33]} 13. Bxc6 {[%clk 0:02:20]}  Bxc6 {[%clk 0:02:33]} 14. Nxe5 {[%clk 0:02:20]}  Bb7 {[%clk 0:02:32]} 15. Nd3 {[%clk 0:02:16]}  Nd7 {[%clk 0:02:27]} 16. Bd2 {[%clk 0:02:08]}  Qb6 {[%clk 0:02:22]} 17. Qc2 {[%clk 0:02:01]}  Rfc8 {[%clk 0:02:21]} 18. a3 {[%clk 0:01:48]}  d4 {[%clk 0:02:16]} 19. Nd1 {[%clk 0:01:37]}  c4 {[%clk 0:02:13]} 20. Nf4 {[%clk 0:01:31]}  d3 {[%clk 0:02:10]} 21. Qc1 {[%clk 0:01:24]}  Qc6 {[%clk 0:01:53]} 22. f3 {[%clk 0:01:20]}  g5 {[%clk 0:01:43]} 23. Nh5 {[%clk 0:01:17]}  Bh8 {[%clk 0:01:38]} 24. Bc3 {[%clk 0:01:16]}  Ne5 {[%clk 0:01:33]} 25. Qd2 {[%clk 0:01:07]}  Qg6 {[%clk 0:01:27]} 26. Ng3 {[%clk 0:00:49]}  h5 {[%clk 0:01:26]} 27. Nf2 {[%clk 0:00:36]}  h4 {[%clk 0:01:21]} 28. Nge4 {[%clk 0:00:35]}  f5 {[%clk 0:01:21]} 29. Bxe5 {[%clk 0:00:29]}  Bxe5 {[%clk 0:01:08]} 30. Nc3 {[%clk 0:00:29]}  Qd6 {[%clk 0:01:07]} 31. f4 {[%clk 0:00:19]}  gxf4 {[%clk 0:01:06]} 32. Nh3 {[%clk 0:00:09]}  fxe3 {[%clk 0:00:58]} 33. Qe1 {[%clk 0:00:09]}  Bxh2+ {[%clk 0:00:54]} 34. Kh1 {[%clk 0:00:09]}  Qg3 {[%clk 0:00:50]} 35. Qxg3+ {[%clk 0:00:07]}  Bxg3 {[%clk 0:00:49]} 36. Rxf5 {[%clk 0:00:08]}  e2 {[%clk 0:00:50]} 37. Nxe2 {[%clk 0:00:06]}  dxe2 {[%clk 0:00:49]} 38. Rg5+ {[%clk 0:00:07]}  Kh7 {[%clk 0:00:48]} 39. Rh5+ {[%clk 0:00:07]}  Kg6 {[%clk 0:00:47]} 40. Rg5+ {[%clk 0:00:07]}  Kh6 {[%clk 0:00:48]} 41. Rf5 {[%clk 0:00:01]}  e1=Q+ {[%clk 0:00:46]} 0-1


[Site "https://www.chess.com"]

[Event "Titled Tuesday Blitz January 10 Early 2023"]
[White "Novikova, Galina"]
[Black "Kuchava, Ana"]
[WhiteFideId "4157095"]
[BlackFideId "13605348"]
[WhiteElo "2073"]
[BlackElo "2101"]
[Result "1-0"]
[Round "07"]
[TimeControl "180+2"]
[Date "2023.01.10"]
[WhiteClock "0:00:05"]
[BlackClock "0:00:09"]

1. e4 {[%clk 0:02:52]}  c5 {[%clk 0:02:58]} 2. Nf3 {[%clk 0:02:51]}  d6 {[%clk 0:02:54]} 3. d4 {[%clk 0:02:51]}  cxd4 {[%clk 0:02:55]} 4. Nxd4 {[%clk 0:02:52]}  Nf6 {[%clk 0:02:55]} 5. Nc3 {[%clk 0:02:52]}  Nc6 {[%clk 0:02:54]} 6. h3 {[%clk 0:02:53]}  g6 {[%clk 0:02:52]} 7. g4 {[%clk 0:02:52]}  Bg7 {[%clk 0:02:51]} 8. Be3 {[%clk 0:02:53]}  Qa5 {[%clk 0:02:39]} 9. Qd2 {[%clk 0:02:51]}  a6 {[%clk 0:02:11]} 10. Nb3 {[%clk 0:02:42]}  Qc7 {[%clk 0:01:52]} 11. g5 {[%clk 0:02:40]}  Nd7 {[%clk 0:01:51]} 12. f4 {[%clk 0:02:36]}  b5 {[%clk 0:01:45]} 13. O-O-O {[%clk 0:02:30]}  Nb6 {[%clk 0:01:37]} 14. h4 {[%clk 0:01:59]}  Nc4 {[%clk 0:01:33]} 15. Bxc4 {[%clk 0:01:58]}  bxc4 {[%clk 0:01:34]} 16. Nd4 {[%clk 0:01:57]}  Rb8 {[%clk 0:01:31]} 17. Nxc6 {[%clk 0:01:51]}  Qxc6 {[%clk 0:01:31]} 18. Bd4 {[%clk 0:01:52]}  e5 {[%clk 0:01:13]} 19. fxe5 {[%clk 0:01:48]}  dxe5 {[%clk 0:01:14]} 20. Bc5 {[%clk 0:01:45]}  Bg4 {[%clk 0:01:05]} 21. Ba3 {[%clk 0:01:36]}  Bxd1 {[%clk 0:01:03]} 22. Rxd1 {[%clk 0:01:36]}  Bf8 {[%clk 0:01:01]} 23. Bxf8 {[%clk 0:01:13]}  Kxf8 {[%clk 0:01:02]} 24. Nd5 {[%clk 0:01:10]}  Kg7 {[%clk 0:00:59]} 25. h5 {[%clk 0:01:08]}  gxh5 {[%clk 0:00:44]} 26. Rf1 {[%clk 0:00:59]}  Qg6 {[%clk 0:00:34]} 27. Qf2 {[%clk 0:00:41]}  Rhf8 {[%clk 0:00:31]} 28. Kb1 {[%clk 0:00:34]}  Kh8 {[%clk 0:00:23]} 29. Qh4 {[%clk 0:00:32]}  c3 {[%clk 0:00:16]} 30. Nxc3 {[%clk 0:00:16]}  Qb6 {[%clk 0:00:15]} 31. b3 {[%clk 0:00:17]}  Rfc8 {[%clk 0:00:09]} 32. Nd5 {[%clk 0:00:16]}  Qc5 {[%clk 0:00:08]} 33. Rf2 {[%clk 0:00:06]}  Qd4 {[%clk 0:00:05]} 34. Qg3 {[%clk 0:00:06]}  Qd1+ {[%clk 0:00:04]} 35. Kb2 {[%clk 0:00:06]}  Qd4+ {[%clk 0:00:05]} 36. Kb1 {[%clk 0:00:06]}  Qd1+ {[%clk 0:00:04]} 37. Kb2 {[%clk 0:00:06]}  Qd4+ {[%clk 0:00:05]} 38. Kc1 {[%clk 0:00:06]}  Qa1+ {[%clk 0:00:04]} 39. Kd2 {[%clk 0:00:07]}  Qxa2 {[%clk 0:00:05]} 40. Qxe5+ {[%clk 0:00:06]}  Kg8 {[%clk 0:00:05]} 41. Ne7+ {[%clk 0:00:05]}  Kf8 {[%clk 0:00:04]} 42. Nxc8 {[%clk 0:00:05]}  Rxc8 {[%clk 0:00:04]} 43. Qh8+ {[%clk 0:00:05]}  Ke7 {[%clk 0:00:03]} 44. Qxc8 {[%clk 0:00:06]}  Qa5+ {[%clk 0:00:04]} 45. Qc3 {[%clk 0:00:05]}  Qxg5+ {[%clk 0:00:04]} 46. Kd1 {[%clk 0:00:04]}  Qg1+ {[%clk 0:00:04]} 47. Ke2 {[%clk 0:00:05]}  Qg4+ {[%clk 0:00:04]} 48. Qf3 {[%clk 0:00:05]}  Qe6 {[%clk 0:00:04]} 49. Qf5 {[%clk 0:00:05]}  Qb6 {[%clk 0:00:03]} 50. Qxf7+ {[%clk 0:00:05]}  Kd8 {[%clk 0:00:03]} 51. Qf8+ {[%clk 0:00:05]}  Kc7 {[%clk 0:00:03]} 52. Rf7+ {[%clk 0:00:06]}  Kc6 {[%clk 0:00:03]} 53. Rf6+ {[%clk 0:00:07]}  Kb5 {[%clk 0:00:03]} 54. Rxb6+ {[%clk 0:00:08]}  Kxb6 {[%clk 0:00:04]} 55. Qf6+ {[%clk 0:00:08]}  Kb5 {[%clk 0:00:05]} 56. Qh6 {[%clk 0:00:08]}  Kb4 {[%clk 0:00:06]} 57. Qxh5 {[%clk 0:00:09]}  a5 {[%clk 0:00:06]} 58. c3+ {[%clk 0:00:09]}  Kxb3 {[%clk 0:00:06]} 59. Qxh7 {[%clk 0:00:09]}  a4 {[%clk 0:00:07]} 60. Qb7+ {[%clk 0:00:09]}  Kxc3 {[%clk 0:00:07]} 61. e5 {[%clk 0:00:09]}  a3 {[%clk 0:00:07]} 62. e6 {[%clk 0:00:10]}  a2 {[%clk 0:00:07]} 63. Qa6 {[%clk 0:00:10]}  Kb2 {[%clk 0:00:08]} 64. e7 {[%clk 0:00:09]}  a1=Q {[%clk 0:00:09]} 65. Qxa1+ {[%clk 0:00:09]}  Kxa1 {[%clk 0:00:09]} 66. e8=Q {[%clk 0:00:09]}  Kb2 {[%clk 0:00:10]} 67. Qc8 {[%clk 0:00:09]}  Kb3 {[%clk 0:00:11]} 68. Qc5 {[%clk 0:00:08]}  Kb2 {[%clk 0:00:06]} 69. Qc4 {[%clk 0:00:06]}  Kb1 {[%clk 0:00:07]} 70. Qd3+ {[%clk 0:00:05]}  Ka2 {[%clk 0:00:07]} 71. Qb5 {[%clk 0:00:05]}  Ka1 {[%clk 0:00:08]} 72. Kd3 {[%clk 0:00:05]}  Ka2 {[%clk 0:00:09]} 73. Kc2 {[%clk 0:00:05]}  Ka1 {[%clk 0:00:09]} 74. Qb2# {[%clk 0:00:05]} 1-0


[Site "https://www.chess.com"]

[Event "Titled Tuesday Blitz January 10 Early 2023"]
[White "Lauridsen, Jesper Morch"]
[Black "Silvestre, Christian"]
[WhiteFideId "1401890"]
[BlackFideId "30956269"]
[WhiteElo "2309"]
[BlackElo "1942"]
[Result "0-1"]
[Round "07"]
[TimeControl "180+2"]
[Date "2023.01.10"]
[WhiteClock "0:02:31"]
[BlackClock "0:02:51"]

1. d4 {[%clk 0:03:00]}  c5 {[%clk 0:03:00]} 2. d5 {[%clk 0:03:00]}  e6 {[%clk 0:03:00]} 3. c4 {[%clk 0:02:59]}  exd5 {[%clk 0:03:00]} 4. cxd5 {[%clk 0:02:58]}  d6 {[%clk 0:03:01]} 5. Nc3 {[%clk 0:02:58]}  Nf6 {[%clk 0:03:02]} 6. e4 {[%clk 0:02:55]}  g6 {[%clk 0:03:01]} 7. Bd3 {[%clk 0:02:55]}  Bg7 {[%clk 0:03:01]} 8. h3 {[%clk 0:02:55]}  O-O {[%clk 0:03:01]} 9. Nf3 {[%clk 0:02:55]}  b5 {[%clk 0:03:02]} 10. Bxb5 {[%clk 0:02:49]}  Nxe4 {[%clk 0:03:01]} 11. Nxe4 {[%clk 0:02:48]}  Qa5+ {[%clk 0:03:01]} 12. Nfd2 {[%clk 0:02:37]}  Qxb5 {[%clk 0:03:01]} 13. Nxd6 {[%clk 0:02:38]}  Qa6 {[%clk 0:03:00]} 14. Nxc8 {[%clk 0:02:31]}  Re8+ {[%clk 0:02:51]} 0-1


[Site "https://www.chess.com"]

[Event "Titled Tuesday Blitz January 10 Early 2023"]
[White "Kornyukov, Alexey"]
[Black "Fernandez, Michael"]
[WhiteFideId "4150457"]
[BlackFideId "5803560"]
[WhiteElo "2452"]
[BlackElo "2181"]
[Result "0-1"]
[Round "07"]
[TimeControl "180+2"]
[Date "2023.01.10"]
[WhiteClock "0:00:21"]
[BlackClock "0:00:12"]

1. e4 {[%clk 0:03:00]}  c6 {[%clk 0:02:59]} 2. Nf3 {[%clk 0:02:57]}  d5 {[%clk 0:02:59]} 3. Nc3 {[%clk 0:02:57]}  Bg4 {[%clk 0:02:57]} 4. h3 {[%clk 0:02:55]}  Bxf3 {[%clk 0:02:55]} 5. Qxf3 {[%clk 0:02:55]}  Nf6 {[%clk 0:02:56]} 6. exd5 {[%clk 0:02:55]}  cxd5 {[%clk 0:02:55]} 7. Bb5+ {[%clk 0:02:54]}  Nc6 {[%clk 0:02:55]} 8. O-O {[%clk 0:02:54]}  e6 {[%clk 0:02:53]} 9. d4 {[%clk 0:02:54]}  Be7 {[%clk 0:02:45]} 10. Bg5 {[%clk 0:02:50]}  O-O {[%clk 0:02:45]} 11. Bxc6 {[%clk 0:02:49]}  bxc6 {[%clk 0:02:44]} 12. Rad1 {[%clk 0:02:49]}  Qb6 {[%clk 0:02:43]} 13. Na4 {[%clk 0:02:43]}  Qa5 {[%clk 0:02:37]} 14. Bxf6 {[%clk 0:02:43]}  Bxf6 {[%clk 0:02:24]} 15. Nc5 {[%clk 0:02:36]}  Be7 {[%clk 0:02:12]} 16. Nd7 {[%clk 0:02:32]}  Rfc8 {[%clk 0:02:06]} 17. Ne5 {[%clk 0:02:30]}  Bf6 {[%clk 0:01:46]} 18. Ng4 {[%clk 0:02:19]}  Be7 {[%clk 0:01:32]} 19. Ne5 {[%clk 0:02:16]}  f6 {[%clk 0:01:27]} 20. Ng4 {[%clk 0:02:09]}  f5 {[%clk 0:01:15]} 21. Ne5 {[%clk 0:02:06]}  Qxa2 {[%clk 0:01:13]} 22. Qc3 {[%clk 0:01:56]}  Qa6 {[%clk 0:00:59]} 23. Rfe1 {[%clk 0:01:47]}  c5 {[%clk 0:00:55]} 24. dxc5 {[%clk 0:01:31]}  Bxc5 {[%clk 0:00:53]} 25. Qg3 {[%clk 0:01:29]}  Bd6 {[%clk 0:00:38]} 26. Qe3 {[%clk 0:01:22]}  Rxc2 {[%clk 0:00:21]} 27. Nf3 {[%clk 0:01:18]}  Re8 {[%clk 0:00:20]} 28. Nd4 {[%clk 0:01:17]}  Rc4 {[%clk 0:00:20]} 29. Nxe6 {[%clk 0:01:15]}  Re4 {[%clk 0:00:18]} 30. Qg5 {[%clk 0:01:12]}  R4xe6 {[%clk 0:00:16]} 31. Rxe6 {[%clk 0:01:11]}  Rxe6 {[%clk 0:00:16]} 32. Qd8+ {[%clk 0:01:11]}  Bf8 {[%clk 0:00:16]} 33. Qxd5 {[%clk 0:01:10]}  Kh8 {[%clk 0:00:16]} 34. Qd8 {[%clk 0:01:09]}  Rf6 {[%clk 0:00:15]} 35. Re1 {[%clk 0:01:08]}  Qd6 {[%clk 0:00:14]} 36. Qa8 {[%clk 0:01:04]}  Qc5 {[%clk 0:00:14]} 37. Re8 {[%clk 0:01:02]}  f4 {[%clk 0:00:14]} 38. Kh2 {[%clk 0:00:59]}  f3 {[%clk 0:00:14]} 39. Re3 {[%clk 0:00:33]}  fxg2 {[%clk 0:00:13]} 40. Kxg2 {[%clk 0:00:34]}  Qg5+ {[%clk 0:00:12]} 41. Rg3 {[%clk 0:00:33]}  Qd2 {[%clk 0:00:11]} 42. Rf3 {[%clk 0:00:28]}  h5 {[%clk 0:00:11]} 43. Rxf6 {[%clk 0:00:27]}  Qg5+ {[%clk 0:00:11]} 44. Kh2 {[%clk 0:00:25]}  Qxf6 {[%clk 0:00:12]} 45. Qxa7 {[%clk 0:00:24]}  Qxb2 {[%clk 0:00:09]} 46. Qa8 {[%clk 0:00:24]}  Qe5+ {[%clk 0:00:09]} 47. Kg1 {[%clk 0:00:24]}  Qf5 {[%clk 0:00:09]} 48. Qg2 {[%clk 0:00:23]}  Kh7 {[%clk 0:00:09]} 49. Qa8 {[%clk 0:00:23]}  Bc5 {[%clk 0:00:09]} 50. Qg2 {[%clk 0:00:22]}  g5 {[%clk 0:00:09]} 51. Kf1 {[%clk 0:00:22]}  Qd3+ {[%clk 0:00:09]} 52. Kg1 {[%clk 0:00:22]}  Qd1+ {[%clk 0:00:09]} 53. Kh2 {[%clk 0:00:22]}  Bd6+ {[%clk 0:00:08]} 54. Qg3 {[%clk 0:00:21]}  Kg6 {[%clk 0:00:07]} 55. f4 {[%clk 0:00:16]}  Qd2+ {[%clk 0:00:06]} 56. Qg2 {[%clk 0:00:16]}  Bxf4+ {[%clk 0:00:05]} 57. Kh1 {[%clk 0:00:16]}  Qe1+ {[%clk 0:00:05]} 58. Qg1 {[%clk 0:00:17]}  Qe4+ {[%clk 0:00:05]} 59. Qg2 {[%clk 0:00:17]}  Kf5 {[%clk 0:00:05]} 60. Qxe4+ {[%clk 0:00:17]}  Kxe4 {[%clk 0:00:05]} 61. Kg2 {[%clk 0:00:18]}  Ke3 {[%clk 0:00:06]} 62. Kf1 {[%clk 0:00:18]}  Kf3 {[%clk 0:00:05]} 63. Kg1 {[%clk 0:00:18]}  h4 {[%clk 0:00:05]} 64. Kh1 {[%clk 0:00:17]}  Kg3 {[%clk 0:00:05]} 65. Kg1 {[%clk 0:00:18]}  Kxh3 {[%clk 0:00:06]} 66. Kh1 {[%clk 0:00:18]}  g4 {[%clk 0:00:07]} 67. Kg1 {[%clk 0:00:19]}  Kg3 {[%clk 0:00:08]} 68. Kh1 {[%clk 0:00:19]}  Bg5 {[%clk 0:00:09]} 69. Kg1 {[%clk 0:00:19]}  h3 {[%clk 0:00:10]} 70. Kh1 {[%clk 0:00:20]}  Kh4 {[%clk 0:00:10]} 71. Kg1 {[%clk 0:00:20]}  g3 {[%clk 0:00:11]} 72. Kh1 {[%clk 0:00:20]}  Kg4 {[%clk 0:00:12]} 73. Kg1 {[%clk 0:00:21]}  Bh6 {[%clk 0:00:12]} 74. Kh1 {[%clk 0:00:21]}  g2+ {[%clk 0:00:13]} 75. Kg1 {[%clk 0:00:21]}  Be3+ {[%clk 0:00:13]} 76. Kh2 {[%clk 0:00:22]}  Kf3 {[%clk 0:00:12]} 77. Kxh3 {[%clk 0:00:20]}  g1=Q {[%clk 0:00:12]} 78. Kh4 {[%clk 0:00:21]}  Qg6 {[%clk 0:00:12]} 79. Kh3 {[%clk 0:00:21]}  Qg5 {[%clk 0:00:12]} 80. Kh2 {[%clk 0:00:21]}  Qg4 {[%clk 0:00:12]} 81. Kh1 {[%clk 0:00:21]}  Qe4 {[%clk 0:00:11]} 82. Kh2 {[%clk 0:00:21]}  Qh4# {[%clk 0:00:12]} 0-1


[Site "https://www.chess.com"]

[Event "Titled Tuesday Blitz January 10 Early 2023"]
[White "Ghosh, Chanchal Kumer"]
[Black "Melikhov, Evgeny V."]
[WhiteFideId "10201858"]
[BlackFideId "4122046"]
[WhiteElo "2020"]
[BlackElo "2269"]
[Result "1-0"]
[Round "07"]
[TimeControl "180+2"]
[Date "2023.01.10"]
[WhiteClock "0:00:19"]
[BlackClock "0:00:08"]

1. e4 {[%clk 0:03:00]}  c5 {[%clk 0:02:59]} 2. Nf3 {[%clk 0:03:01]}  d6 {[%clk 0:02:58]} 3. d4 {[%clk 0:03:01]}  cxd4 {[%clk 0:02:58]} 4. Nxd4 {[%clk 0:03:02]}  Nf6 {[%clk 0:02:59]} 5. Nc3 {[%clk 0:03:02]}  a6 {[%clk 0:02:59]} 6. Be2 {[%clk 0:03:03]}  e6 {[%clk 0:02:59]} 7. Be3 {[%clk 0:03:02]}  Be7 {[%clk 0:02:59]} 8. O-O {[%clk 0:03:02]}  O-O {[%clk 0:02:59]} 9. f4 {[%clk 0:03:03]}  Qc7 {[%clk 0:02:58]} 10. Bf3 {[%clk 0:03:02]}  Nc6 {[%clk 0:02:58]} 11. Nb3 {[%clk 0:03:01]}  b5 {[%clk 0:02:38]} 12. g4 {[%clk 0:03:01]}  Bb7 {[%clk 0:02:33]} 13. g5 {[%clk 0:03:00]}  Nd7 {[%clk 0:02:33]} 14. Qe1 {[%clk 0:02:56]}  g6 {[%clk 0:02:28]} 15. Qh4 {[%clk 0:02:55]}  Rfe8 {[%clk 0:02:22]} 16. Bg2 {[%clk 0:02:54]}  f5 {[%clk 0:02:00]} 17. exf5 {[%clk 0:02:46]}  gxf5 {[%clk 0:01:42]} 18. Qh6 {[%clk 0:02:24]}  Nf8 {[%clk 0:01:39]} 19. Rf3 {[%clk 0:01:58]}  Ng6 {[%clk 0:01:36]} 20. Rh3 {[%clk 0:01:45]}  Bf8 {[%clk 0:01:35]} 21. Qh5 {[%clk 0:01:45]}  Rac8 {[%clk 0:01:28]} 22. Re1 {[%clk 0:01:41]}  Qg7 {[%clk 0:01:10]} 23. Rd1 {[%clk 0:01:24]}  Nb4 {[%clk 0:00:48]} 24. Bxb7 {[%clk 0:01:03]}  Qxb7 {[%clk 0:00:48]} 25. Rd2 {[%clk 0:00:53]}  Nxc2 {[%clk 0:00:37]} 26. Rxc2 {[%clk 0:00:50]}  b4 {[%clk 0:00:37]} 27. Nd5 {[%clk 0:00:37]}  exd5 {[%clk 0:00:37]} 28. Rxc8 {[%clk 0:00:36]}  Rxc8 {[%clk 0:00:37]} 29. Bd4 {[%clk 0:00:35]}  Rc4 {[%clk 0:00:28]} 30. Qxg6+ {[%clk 0:00:24]}  hxg6 {[%clk 0:00:28]} 31. Rh8+ {[%clk 0:00:23]}  Kf7 {[%clk 0:00:28]} 32. Rh7+ {[%clk 0:00:23]}  Ke6 {[%clk 0:00:26]} 33. Rxb7 {[%clk 0:00:23]}  a5 {[%clk 0:00:26]} 34. Bf6 {[%clk 0:00:19]}  d4 {[%clk 0:00:25]} 35. Nxd4+ {[%clk 0:00:18]}  Kd5 {[%clk 0:00:25]} 36. Nb3 {[%clk 0:00:17]}  a4 {[%clk 0:00:25]} 37. Na5 {[%clk 0:00:16]}  Rc2 {[%clk 0:00:24]} 38. Rxb4 {[%clk 0:00:15]}  Ke6 {[%clk 0:00:20]} 39. Rxa4 {[%clk 0:00:14]}  d5 {[%clk 0:00:20]} 40. b4 {[%clk 0:00:14]}  Bd6 {[%clk 0:00:17]} 41. Be5 {[%clk 0:00:13]}  Bxe5 {[%clk 0:00:16]} 42. fxe5 {[%clk 0:00:14]}  f4 {[%clk 0:00:16]} 43. Nb7 {[%clk 0:00:15]}  f3 {[%clk 0:00:15]} 44. Nc5+ {[%clk 0:00:15]}  Kxe5 {[%clk 0:00:15]} 45. Kf1 {[%clk 0:00:15]}  d4 {[%clk 0:00:14]} 46. Ra3 {[%clk 0:00:14]}  Kf4 {[%clk 0:00:13]} 47. Rd3 {[%clk 0:00:14]}  Rxa2 {[%clk 0:00:09]} 48. Rxd4+ {[%clk 0:00:14]}  Ke3 {[%clk 0:00:10]} 49. Rd3+ {[%clk 0:00:15]}  Kf4 {[%clk 0:00:10]} 50. Rb3 {[%clk 0:00:15]}  Rxh2 {[%clk 0:00:09]} 51. b5 {[%clk 0:00:15]}  Kg3 {[%clk 0:00:09]} 52. Ne4+ {[%clk 0:00:15]}  Kf4 {[%clk 0:00:09]} 53. Nf2 {[%clk 0:00:15]}  Rh8 {[%clk 0:00:07]} 54. b6 {[%clk 0:00:15]}  Ra8 {[%clk 0:00:07]} 55. b7 {[%clk 0:00:15]}  Ra1+ {[%clk 0:00:07]} 56. Nd1 {[%clk 0:00:16]}  Rxd1+ {[%clk 0:00:08]} 57. Kf2 {[%clk 0:00:17]}  Rd2+ {[%clk 0:00:08]} 58. Ke1 {[%clk 0:00:17]}  Re2+ {[%clk 0:00:08]} 59. Kf1 {[%clk 0:00:18]}  Re8 {[%clk 0:00:08]} 60. b8=Q+ {[%clk 0:00:18]}  Rxb8 {[%clk 0:00:08]} 61. Rxb8 {[%clk 0:00:19]}  Kxg5 {[%clk 0:00:09]} 62. Kf2 {[%clk 0:00:19]}  Kg4 {[%clk 0:00:08]} 63. Rf8 {[%clk 0:00:19]}  g5 {[%clk 0:00:08]} 64. Rxf3 {[%clk 0:00:20]}  Kh4 {[%clk 0:00:08]} 65. Rf7 {[%clk 0:00:19]}  g4 {[%clk 0:00:08]} 66. Kg2 {[%clk 0:00:19]}  Kg5 {[%clk 0:00:08]} 67. Kg3 {[%clk 0:00:19]} 1-0


[Site "https://www.chess.com"]

[Event "Titled Tuesday Blitz January 10 Early 2023"]
[White "Vaglio Munoz, Jaime"]
[Black "Vargas, Mauricio"]
[WhiteFideId "6500145"]
[BlackFideId "4404572"]
[WhiteElo "2174"]
[BlackElo "2035"]
[Result "1-0"]
[Round "07"]
[TimeControl "180+2"]
[Date "2023.01.10"]
[WhiteClock "0:00:28"]
[BlackClock "0:00:03"]

1. e4 {[%clk 0:01:13]}  c6 {[%clk 0:03:00]} 2. Nc3 {[%clk 0:01:07]}  d5 {[%clk 0:03:01]} 3. Nf3 {[%clk 0:01:07]}  dxe4 {[%clk 0:03:01]} 4. Nxe4 {[%clk 0:01:06]}  Nf6 {[%clk 0:03:02]} 5. Nxf6+ {[%clk 0:01:05]}  exf6 {[%clk 0:03:03]} 6. Bc4 {[%clk 0:01:05]}  Bd6 {[%clk 0:03:03]} 7. Qe2+ {[%clk 0:01:05]}  Be7 {[%clk 0:03:01]} 8. O-O {[%clk 0:01:03]}  O-O {[%clk 0:03:01]} 9. d4 {[%clk 0:01:03]}  Re8 {[%clk 0:03:01]} 10. Qd3 {[%clk 0:01:02]}  Bd6 {[%clk 0:03:00]} 11. h3 {[%clk 0:01:01]}  Bc7 {[%clk 0:02:57]} 12. Bb3 {[%clk 0:01:01]}  Qd6 {[%clk 0:02:50]} 13. c4 {[%clk 0:01:01]}  b6 {[%clk 0:02:47]} 14. Bc2 {[%clk 0:00:59]}  f5 {[%clk 0:02:40]} 15. Bd2 {[%clk 0:00:58]}  Be6 {[%clk 0:02:31]} 16. Rae1 {[%clk 0:00:59]}  Nd7 {[%clk 0:02:28]} 17. b3 {[%clk 0:00:59]}  Nf6 {[%clk 0:02:21]} 18. Bc3 {[%clk 0:01:00]}  Ne4 {[%clk 0:02:19]} 19. Ne5 {[%clk 0:01:00]}  f6 {[%clk 0:02:12]} 20. Nf3 {[%clk 0:00:59]}  g5 {[%clk 0:02:10]} 21. c5 {[%clk 0:00:52]}  bxc5 {[%clk 0:02:06]} 22. dxc5 {[%clk 0:00:52]}  Qxc5 {[%clk 0:01:56]} 23. Rxe4 {[%clk 0:00:52]}  fxe4 {[%clk 0:01:45]} 24. Qxe4 {[%clk 0:00:53]}  f5 {[%clk 0:01:32]} 25. Qd4 {[%clk 0:00:45]}  Qxd4 {[%clk 0:01:31]} 26. Bxd4 {[%clk 0:00:46]}  g4 {[%clk 0:01:26]} 27. Ng5 {[%clk 0:00:46]}  Bd7 {[%clk 0:01:17]} 28. hxg4 {[%clk 0:00:46]}  fxg4 {[%clk 0:01:17]} 29. Bd3 {[%clk 0:00:46]}  h6 {[%clk 0:01:16]} 30. Bc4+ {[%clk 0:00:46]}  Kf8 {[%clk 0:01:05]} 31. Bc5+ {[%clk 0:00:44]}  Kg7 {[%clk 0:00:57]} 32. f3 {[%clk 0:00:41]}  hxg5 {[%clk 0:00:55]} 33. fxg4 {[%clk 0:00:41]}  Bb6 {[%clk 0:00:54]} 34. Bxb6 {[%clk 0:00:40]}  axb6 {[%clk 0:00:54]} 35. Rd1 {[%clk 0:00:41]}  Rad8 {[%clk 0:00:53]} 36. Rd6 {[%clk 0:00:39]}  Bxg4 {[%clk 0:00:50]} 37. Rxc6 {[%clk 0:00:39]}  Rd1+ {[%clk 0:00:50]} 38. Kh2 {[%clk 0:00:39]}  Ree1 {[%clk 0:00:44]} 39. Rxb6 {[%clk 0:00:38]}  Rh1+ {[%clk 0:00:44]} 40. Kg3 {[%clk 0:00:39]}  Ra1 {[%clk 0:00:36]} 41. Rb5 {[%clk 0:00:39]}  Kg6 {[%clk 0:00:34]} 42. Kxg4 {[%clk 0:00:37]}  Rxa2 {[%clk 0:00:31]} 43. Rb6+ {[%clk 0:00:38]}  Kg7 {[%clk 0:00:29]} 44. g3 {[%clk 0:00:39]}  Ra5 {[%clk 0:00:27]} 45. Rb7+ {[%clk 0:00:39]}  Kf6 {[%clk 0:00:26]} 46. Rb6+ {[%clk 0:00:39]}  Ke5 {[%clk 0:00:25]} 47. Re6+ {[%clk 0:00:39]}  Kd4 {[%clk 0:00:26]} 48. Rd6+ {[%clk 0:00:39]}  Kc3 {[%clk 0:00:26]} 49. Rd3+ {[%clk 0:00:39]}  Kb4 {[%clk 0:00:25]} 50. Rd8 {[%clk 0:00:38]}  Re1 {[%clk 0:00:24]} 51. Rb8+ {[%clk 0:00:38]}  Kc3 {[%clk 0:00:23]} 52. Bf7 {[%clk 0:00:36]}  Re4+ {[%clk 0:00:22]} 53. Kh5 {[%clk 0:00:36]}  g4+ {[%clk 0:00:19]} 54. Kh4 {[%clk 0:00:36]}  Re1 {[%clk 0:00:17]} 55. b4 {[%clk 0:00:35]}  Rh1+ {[%clk 0:00:16]} 56. Kxg4 {[%clk 0:00:35]}  Ra4 {[%clk 0:00:16]} 57. Rc8+ {[%clk 0:00:35]}  Kb2 {[%clk 0:00:14]} 58. Rc4 {[%clk 0:00:34]}  Rb1 {[%clk 0:00:12]} 59. Rf4 {[%clk 0:00:32]}  Ka3 {[%clk 0:00:12]} 60. Rf3+ {[%clk 0:00:32]}  Rb3 {[%clk 0:00:11]} 61. Rxb3+ {[%clk 0:00:32]}  Ka2 {[%clk 0:00:11]} 62. Kf5 {[%clk 0:00:30]}  Ka1 {[%clk 0:00:09]} 63. b5 {[%clk 0:00:29]}  Ra5 {[%clk 0:00:06]} 64. Kf6 {[%clk 0:00:28]}  Ra7 {[%clk 0:00:04]} 65. b6 {[%clk 0:00:28]}  Rb7 {[%clk 0:00:03]} 66. Bd5 {[%clk 0:00:28]} 1-0


[Site "https://www.chess.com"]